fUSD/lending_fUSD_20260122
["ID","MTS","AMOUNT","RATE_DAILY","PERIOD"]
[403062902,1769116232941,-241.94500566,0.00016498,2]
[403062903,1769116232952,-258.05499434,0.00016498,2]
[403062904,1769116232962,-500.0,0.00016498,2]
[403062905,1769116232971,-868.29039314,0.00016499,2]
[403062907,1769116237930,-16533.48530457,0.00016499,2]
[403062908,1769116237942,-1003.68550338,0.00016499,2]
[403062909,1769116237954,-257.00091826,0.00016499,2]
[403062910,1769116237965,-852.16466634,0.00016499,2]
[403062911,1769116237977,-2937.00000005,0.00016499,2]
[403062912,1769116237989,-300.0,0.00016499,2]
[403062913,1769116238009,-4840.21844803,0.00016499,2]
[403062914,1769116238022,-590.83,0.00016499,2]
[403062915,1769116238032,-2500.0,0.000165,2]
[403062916,1769116238042,-500.0,0.0001659,2]
[403062917,1769116238052,-500.0,0.0001659,2]
[403062918,1769116238062,-500.0,0.0001659,2]
[403062919,1769116238071,-500.0,0.0001659,2]
[403062920,1769116238081,-500.0,0.0001659,2]
[403062921,1769116238091,-500.0,0.0001659,2]
[403062922,1769116238101,-500.0,0.0001659,2]
[403062923,1769116238111,-500.0,0.0001659,2]
[403062924,1769116238120,-500.0,0.0001659,2]
[403062925,1769116238130,-500.0,0.0001659,2]
[403062926,1769116238141,-500.0,0.0001659,2]
[403062927,1769116238151,-500.0,0.0001659,2]
[403062929,1769116238161,-531.98083664,0.0001659,2]
[403062931,1769116238171,-500.0,0.0001659,2]
[403062933,1769116238181,-1000.0,0.00016598,2]
[403062935,1769116238195,-272.20165011,0.00016599,2]
[403062936,1769116238208,-538.86265601,0.00016599,2]
[403062937,1769116238223,-500.0,0.00016599,2]
[403062938,1769116238233,-500.0,0.00016599,2]
[403062939,1769116238244,-217.45956447,0.00016599,2]
[403062940,1769116238254,-500.0,0.00016599,2]
[403062941,1769116238264,-500.0,0.00016599,2]
[403062943,1769116238275,-500.0,0.00016599,2]
[403062945,1769116238284,-500.0,0.00016599,2]
[403062947,1769116238294,-272.16813379,0.00016599,2]
[403062949,1769116238304,-500.0,0.00016599,2]
[403062951,1769116238314,-1852.42,0.00016607,2]
[403062953,1769116238324,-1000.0,0.000167,2]
[403062955,1769116238334,-164.52,0.00016757,2]
[403062957,1769116238344,-590.83,0.00016773,2]
[403062959,1769116238354,-200.0,0.0001678,2]
[403062961,1769116238365,-1074.88818825,0.00016796,2]
[403062963,1769116238375,-198.58095138,0.00016799,2]
[403062965,1769116238384,-632.25,0.00016995,2]
[403062967,1769116238394,-250.0,0.00017,2]
[403062969,1769116238404,-590.83,0.00017047,2]
[403062972,1769116238414,-500.0,0.00017138,2]
[403062974,1769116238428,-150.0,0.000172,2]
[403062976,1769116238438,-3402.32,0.000172,2]
[403062978,1769116238447,-216.34,0.000172,2]
[403062979,1769116238459,-590.83,0.00017321,2]
[403062985,1769116238718,-728.2071432,0.00017339,2]
[403062986,1769116238790,-300.0,0.00017378,2]
[403062987,1769116238799,-420.0,0.00017509,2]
[403062988,1769116238809,-1244.0,0.00017589,2]
[403062989,1769116238819,-590.83,0.00017595,2]
[403062990,1769116238828,-632.25,0.00017632,2]
[403062991,1769116238838,-215.05133739,0.00017673,2]
[403062992,1769116238847,-500.0,0.00017673,2]
[403062993,1769116238856,-459.63746506,0.00017673,2]
[403062994,1769116238865,-500.0,0.00017673,2]
[403062995,1769116238876,-500.0,0.00017673,2]
[403062996,1769116238885,-490.42703734,0.00017673,2]
[403062997,1769116238894,-500.0,0.00017673,2]
[403062998,1769116238904,-500.0,0.00017673,2]
[403062999,1769116238914,-500.0,0.00017673,2]
[403063000,1769116238923,-514.13913965,0.00017673,2]
[403063001,1769116238932,-546.39725778,0.00017673,2]
[403063002,1769116238942,-500.0,0.00017673,2]
[403063003,1769116238951,-500.0,0.00017673,2]
[403063004,1769116238962,-500.0,0.00017673,2]
[403063005,1769116238972,-300.0,0.00017772,2]
[403063006,1769116238982,-5074.53355401,0.00017772,2]
[403063007,1769116238992,-185.66149566,0.00017772,2]
[403063008,1769116239002,-424.21815582,0.00017772,2]
[403063009,1769116239012,-689.93257127,0.00017772,2]
[403063010,1769116239022,-1921.75017227,0.00017839,2]
[403063011,1769116239032,-3390.1950962,0.00017839,2]
[403063012,1769116239042,-5071.52910967,0.00017839,2]
[403063013,1769116239051,-171.51013394,0.000179,2]
[403063014,1769116239061,-1562.2548401,0.000179,2]
[403063015,1769116239071,-5657.90724916,0.000179,2]
[403063016,1769116239082,-522.03355292,0.000179,2]
[403063017,1769116239091,-2367.12426602,0.000179,2]
[403063018,1769116239101,-150.0,0.00017973,2]
[403063019,1769116239111,-150.0,0.00017973,2]
[403063020,1769116239120,-5469.61,0.0001799,2]
[403063021,1769116239129,-5469.61,0.0001799,2]
[403063022,1769116239139,-3536.8657216,0.00017999,2]
[403063023,1769116239149,-3535515.98851858,0.00018,2]
[403063024,1769116239159,-1190.3363288,0.00018,2]
[403063025,1769116239169,-150.0,0.00018028,2]
[403063026,1769116239179,-200.0,0.00018083,2]
[403063027,1769116239188,-1000.0,0.00018221,2]
[403063028,1769116239198,-585.77072382,0.00018221,2]
[403063029,1769116239209,-500.0,0.00018221,2]
[403063030,1769116239218,-1000.0,0.00018221,2]
[403063031,1769116239233,-632.25,0.0001827,2]
[403063032,1769116239243,-461.61,0.00018728,2]
[403063033,1769116239252,-1000.0,0.00018768,2]
[403063034,1769116239262,-152.32,0.000188,2]
[403063035,1769116239272,-2791.9,0.00018865,2]
[403063036,1769116239281,-632.25,0.00018907,2]
[403063037,1769116239291,-180.99535885,0.00019,2]
[403063038,1769116239300,-59664.00204365,0.00019,2]
[403063039,1769116239310,-1669.9419939,0.00019,2]
[403063040,1769116239319,-203.4,0.00019012,2]
[403063041,1769116239328,-250.53191736,0.00019061,2]
[403063042,1769116239338,-198.0,0.00019142,2]
[403063043,1769116239348,-500.0,0.00019178,2]
[403063044,1769116239357,-500.0,0.00019178,2]
[403063045,1769116239367,-383.80397736,0.00019178,2]
[403063046,1769116239377,-150.34,0.00019178,30]
[403063047,1769116239387,-632.25,0.00019544,2]
[403063048,1769116239396,-461.61,0.00019579,2]
[403063049,1769116239406,-500.0,0.000196,2]
[403063050,1769116239415,-163.89,0.00019842,2]
[403063051,1769116239424,-163.89,0.00019952,2]
[403063052,1769116239433,-6792.35090051,0.00020008,2]
[403063053,1769116239443,-163.89,0.00020062,2]
[403063054,1769116239452,-1500.0,0.00020085,2]
[403063055,1769116239463,-163.89,0.00020172,2]
[403063056,1769116239472,-500.0,0.00020192,2]
[403063057,1769116239481,-163.89,0.00020283,2]
[403063058,1769116239490,-5657.90724908,0.00020344,2]
[403063059,1769116239499,-25511.358687,0.00020363,2]
[403063060,1769116239508,-163.89,0.00020393,2]
[403063061,1769116239517,-461.61,0.00020431,2]
[403063062,1769116239526,-163.89,0.00020503,2]
[403063063,1769116239535,-163.89,0.00020613,2]
[403063064,1769116239544,-163.89,0.00020723,2]
[403063065,1769116239554,-176.0901754,0.00020795,2]
[403063066,1769116239563,-163.89,0.00020834,2]
[403063067,1769116239572,-5692.3535494,0.00020892,2]
[403063068,1769116239580,-203.4,0.00021144,2]
[403063069,1769116239590,-11517.45,0.00021592,2]
[403063070,1769116239599,-20825.58,0.00021757,2]
[403063071,1769116239608,-3694.38,0.00021757,2]
[403063072,1769116239618,-497.09,0.00021757,2]
[403063073,1769116239627,-150.99,0.00021757,2]
[403063074,1769116239636,-5000.0,0.00021918,2]
[403063075,1769116239646,-23960.91074274,0.00022,4]
[403063076,1769116239655,-5533.0,0.00022,5]
[403063077,1769116239664,-150.0,0.00022339,2]
[403063078,1769116239673,-6861.9573,0.00022339,7]
[403063079,1769116239682,-97033.42,0.000225,2]
[403063080,1769116239691,-1440.68,0.000225,7]
[403063081,1769116239704,-449.92,0.00022624,2]
[403063082,1769116239714,-5657.90724908,0.00022789,2]
[403063083,1769116239724,-261.19,0.00022898,2]
[403063084,1769116239733,-203.4,0.00023276,2]
[403063085,1769116239743,-3402.32,0.0002408,2]
[403063086,1769116239752,-3100.0,0.00024132,2]
[403063087,1769116239762,-822.55118289,0.000246,120]
[403063088,1769116239771,-150.0,0.00024658,2]
[403063089,1769116239780,-500.0,0.00024873,2]
[403063090,1769116239789,-500.0,0.00024873,2]
[403063091,1769116239798,-500.0,0.00024873,2]
[403063092,1769116239807,-500.0,0.00025091,7]
[403063093,1769116239816,-4557.7,0.00025107,2]
[403063094,1769116239826,-5657.90724908,0.00025233,2]
[403063095,1769116239835,-203.4,0.00025408,2]
[403063096,1769116239844,-1000.0,0.00025421,2]
[403063097,1769116239853,-164.86293481,0.00025999,14]
[403063098,1769116239862,-171.51013392,0.00026146,2]
[403063099,1769116239871,-2441.0,0.00026391,2]
[403063100,1769116239881,-4828.0,0.00026391,2]
[403063101,1769116239890,-6565.0,0.00026391,2]
[403063102,1769116239899,-166.8,0.0002679,2]
[403063103,1769116239908,-97033.42,0.000268,2]
[403063104,1769116239918,-1440.68,0.00027,7]
[403063105,1769116239927,-322.6107,0.00027112,2]
[403063106,1769116239935,-500.0,0.00027112,2]
[403063107,1769116239945,-500.0,0.00027112,2]
[403063108,1769116239953,-500.0,0.00027112,2]
[403063109,1769116239963,-500.0,0.00027112,2]
[403063110,1769116239972,-514.84070869,0.00027112,2]
[403063111,1769116239981,-500.0,0.00027112,2]
[403063112,1769116239990,-500.0,0.00027112,2]
[403063113,1769116240000,-500.0,0.00027112,2]
[403063114,1769116240010,-500.0,0.00027112,2]
[403063115,1769116240019,-500.0,0.00027112,2]
[403063116,1769116240028,-500.0,0.00027112,2]
[403063117,1769116240037,-500.0,0.00027112,2]
[403063118,1769116240046,-3210.0,0.00027112,2]
[403063119,1769116240056,-250.0,0.00027112,2]
[403063120,1769116240065,-250.0,0.00027112,2]
[403063121,1769116240075,-285.59496308,0.00027112,2]
[403063122,1769116240083,-500.0,0.00027112,2]
[403063123,1769116240093,-515.0,0.00027112,2]
[403063124,1769116240102,-500.0,0.00027112,2]
[403063125,1769116240111,-178.81745553,0.00027112,2]
[403063126,1769116240120,-250.0,0.00027112,2]
[403063127,1769116240129,-250.0,0.00027112,2]
[403063128,1769116240139,-250.0,0.00027112,2]
[403063129,1769116240147,-250.0,0.00027112,2]
[403063130,1769116240156,-500.0,0.00027112,2]
[403063131,1769116240165,-250.0,0.00027112,2]
[403063132,1769116240175,-500.0,0.00027112,2]
[403063133,1769116240184,-250.0,0.00027112,2]
[403063134,1769116240193,-500.0,0.00027112,2]
[403063135,1769116240203,-250.0,0.00027112,2]
[403063136,1769116240212,-500.0,0.00027112,2]
[403063137,1769116240222,-293.01774456,0.00027112,2]
[403063138,1769116240231,-500.0,0.00027112,2]
[403063139,1769116240240,-500.0,0.00027112,2]
[403063140,1769116240250,-500.0,0.00027112,2]
[403063141,1769116240259,-500.0,0.00027112,2]
[403063142,1769116240269,-500.0,0.00027112,2]
[403063143,1769116240278,-500.0,0.00027112,2]
[403063144,1769116240288,-500.0,0.00027112,2]
[403063145,1769116240298,-500.0,0.00027112,2]
[403063146,1769116240307,-500.0,0.00027112,2]
[403063147,1769116240317,-151.0,0.00027112,2]
[403063148,1769116240326,-500.0,0.00027112,2]
[403063149,1769116240336,-151.0,0.00027112,2]
[403063150,1769116240346,-500.0,0.00027112,2]
[403063151,1769116240355,-250.0,0.00027112,2]
[403063152,1769116240364,-151.0,0.00027112,2]
[403063153,1769116240373,-250.0,0.00027112,2]
[403063154,1769116240383,-151.0,0.00027112,2]
[403063155,1769116240392,-500.0,0.00027112,2]
[403063156,1769116240401,-151.0,0.00027112,2]
[403063157,1769116240410,-500.0,0.00027112,2]
[403063158,1769116240420,-250.0,0.00027112,2]
[403063159,1769116240430,-151.0,0.00027112,2]
[403063160,1769116240439,-500.0,0.00027112,2]
[403063161,1769116240448,-250.0,0.00027112,2]
[403063162,1769116240458,-151.0,0.00027112,2]
[403063163,1769116240467,-500.0,0.00027112,2]
[403063164,1769116240477,-250.0,0.00027112,2]
[403063165,1769116240486,-151.0,0.00027112,2]
[403063166,1769116240496,-289.88191886,0.00027112,2]
[403063167,1769116240506,-500.0,0.00027112,2]
[403063169,1769116240515,-151.0,0.00027112,2]
[403063171,1769116240524,-500.0,0.00027112,2]
[403063172,1769116240533,-151.0,0.00027112,2]
[403063173,1769116240542,-500.0,0.00027112,2]
[403063174,1769116240551,-151.0,0.00027112,2]
[403063175,1769116240560,-1000.0,0.00027123,2]
[403063177,1769116240569,-150.0,0.00027123,2]
[403063178,1769116240579,-150.0,0.00027369,2]
[403063179,1769116240588,-190.55844376,0.0002737,2]
[403063180,1769116240597,-2425.64538817,0.0002739,2]
[403063181,1769116240606,-1000.0,0.00027397,2]
[403063182,1769116240615,-500.0,0.00027397,30]
[403063183,1769116240624,-203.4,0.0002754,2]
[403063184,1769116240633,-1000.0,0.00027671,2]
[403063185,1769116240643,-5657.90724908,0.00027678,2]
[403063186,1769116240652,-1756.0,0.000279,2]
[403063187,1769116240661,-1000.0,0.00027945,2]
[403063188,1769116240670,-3210.0,0.00028481,2]
[403063189,1769116240679,-1000.0,0.00029052,2]
[403063190,1769116240688,-615.0,0.00029275,2]
[403063191,1769116240698,-1407.0,0.00029275,2]
[403063192,1769116240710,-1332.0,0.00029275,2]
[403063193,1769116240719,-3474.0,0.00029275,2]
[403063194,1769116240728,-184.0,0.00029275,2]
[403063195,1769116240739,-1268.0,0.00029275,2]
[403063196,1769116240748,-915.0,0.00029275,2]
[403063197,1769116240757,-1203.0,0.00029275,2]
[403063198,1769116240766,-2441.0,0.00029391,2]
[403063199,1769116240775,-4828.0,0.00029391,2]
[403063200,1769116240786,-6565.0,0.00029391,2]
[403063201,1769116240795,-150.0,0.00029589,2]
[403063202,1769116240804,-203.4,0.00029672,2]
[403063203,1769116240813,-3210.0,0.0002985,2]
[403063204,1769116240822,-1562.25484009,0.0002985,2]
[403063205,1769116240831,-4562.75061915,0.000299,2]
[403063206,1769116240840,-1000.0,0.0003,30]
[403063207,1769116240849,-5657.90724908,0.00030122,2]
[403063208,1769116240859,-97033.42,0.000302,2]
[403063209,1769116240868,-174.6,0.00030399,2]
[403063210,1769116240877,-1440.68,0.000304,7]
[403063211,1769116240886,-500.0,0.00030582,12]
[403063212,1769116240895,-522.0335529,0.00030598,2]
[403063213,1769116240905,-3000.0,0.00031,30]
[403063214,1769116240914,-3210.0,0.00031219,2]
[403063215,1769116240923,-1755.0,0.000316,2]
[403063216,1769116240933,-203.4,0.00031805,2]
[403063217,1769116240942,-1321.0,0.00031997,2]
[403063218,1769116240951,-3778.0,0.00032,30]
[403063219,1769116240963,-150.0,0.00032055,2]
[403063220,1769116240972,-1320.0,0.0003227,2]
[403063221,1769116240981,-615.0,0.00032275,2]
[403063222,1769116240990,-1407.0,0.00032275,2]
[403063223,1769116240999,-1332.0,0.00032275,2]
[403063224,1769116241009,-3474.0,0.00032275,2]
[403063225,1769116241018,-173.0,0.00032275,2]
[403063226,1769116241027,-1268.0,0.00032275,2]
[403063227,1769116241035,-915.0,0.00032275,2]
[403063228,1769116241045,-1203.0,0.00032275,2]
[403063229,1769116241054,-2441.0,0.00032391,2]
[403063230,1769116241063,-4828.0,0.00032391,2]
[403063231,1769116241072,-6564.0,0.00032391,2]
[403063232,1769116241082,-5657.90724908,0.00032567,2]
[403063233,1769116241091,-1321.0,0.00032659,2]
[403063234,1769116241099,-1000.0,0.00032683,2]
[403063235,1769116241109,-150.34,0.00032877,30]
[403063236,1769116241118,-3000.0,0.00033,30]
[403063237,1769116241127,-1008.0,0.00033,30]
[403063238,1769116241136,-1320.0,0.00033017,2]
[403063239,1769116241146,-1320.0,0.00033022,2]
[403063240,1769116241155,-359.0,0.00033064,30]
[403063241,1769116241165,-168.0,0.0003364,2]
[403063242,1769116241174,-422.31324799,0.00033699,7]
[403063243,1769116241184,-19373.89,0.000337,2]
[403063244,1769116241193,-1321.0,0.00033928,7]
[403063245,1769116241203,-6434.20485697,0.00033931,2]
[403063246,1769116241213,-5000.0,0.00033931,2]
[403063247,1769116241223,-5000.0,0.00033931,2]
[403063248,1769116241232,-5000.0,0.00033931,2]
[403063249,1769116241242,-203.4,0.00033937,5]
[403063250,1769116241251,-326.63588603,0.00034,2]
[403063251,1769116241261,-1913.15065309,0.00034,2]
[403063252,1769116241270,-501.61503756,0.00034,2]
[403063253,1769116241279,-1320.0,0.00034028,7]
[403063254,1769116241290,-150.0,0.00034173,5]
[403063255,1769116241300,-300.0,0.00034173,5]
[403063256,1769116241310,-2969.13495362,0.000342,2]
[403063257,1769116241804,-405.51,0.00016607,2]
[403063258,1769116241813,-1908.5466916,0.00017739,2]
[403063259,1769116241822,-94064.28504638,0.000342,2]
[403063260,1769116241831,-168.0,0.00034293,2]
[403063261,1769116241841,-171.51013392,0.00034393,6]
[403063262,1769116241850,-168.0,0.00034434,2]
[403063263,1769116241859,-1729.14135792,0.0003449,2]
[403063264,1769116241868,-1440.68,0.000347,14]
[403063265,1769116241878,-200.0,0.00034721,5]
[403063266,1769116241887,-500.12167174,0.00034721,5]
[403063267,1769116241896,-172.18271153,0.00034794,7]
[403063268,1769116241905,-1320.0,0.0003488,2]
[403063269,1769116241915,-168.0,0.00034986,2]
[403063270,1769116241923,-168.0,0.00034997,2]
[403063271,1769116241932,-1351.10864469,0.00035,2]
[403063272,1769116241941,-161.17974342,0.00035,2]
[403063273,1769116241950,-5657.90724908,0.00035011,2]
[403063274,1769116241960,-1320.0,0.00035117,2]
[403063275,1769116241968,-168.0,0.00035158,2]
[403063276,1769116241977,-615.0,0.00035275,2]
[403063277,1769116241986,-1407.0,0.00035275,2]
[403063278,1769116241995,-3474.0,0.00035275,2]
[403063279,1769116242004,-915.0,0.00035275,2]
[403063280,1769116242013,-1083.02,0.00035391,2]
[403063281,1769116242022,-319.63,0.00035391,2]
[403063282,1769116242031,-168.0,0.00035464,7]
[403063283,1769116242040,-19373.89,0.000355,2]
[403063284,1769116242049,-168.0,0.00035535,2]
[403063285,1769116242058,-168.0,0.00035583,2]
[403063286,1769116242067,-285.83766564,0.00035589,30]
[403063287,1769116242076,-168.0,0.00035597,2]
[403063288,1769116242086,-157618.12083706,0.0003561,2]
[403063289,1769116242096,-906.51513282,0.00035616,30]
[403063290,1769116242105,-581.83740047,0.00035616,7]
[403063291,1769116242115,-534.42943587,0.00035616,7]
[403063292,1769116242125,-500.0,0.00035616,7]
[403063293,1769116242134,-500.0,0.00035616,7]
[403063294,1769116242143,-260.22689207,0.00035616,7]
[403063295,1769116242153,-168.0,0.00035709,2]
[403063296,1769116242163,-152.0,0.00035747,3]
[403063297,1769116242172,-18142.59344377,0.00036,2]
[403063298,1769116242181,-168.0,0.0003605,2]
[403063299,1769116242190,-203.4,0.00036069,7]
[403063300,1769116242199,-500.0,0.00036073,17]
[403063301,1769116242208,-168.0,0.00036092,2]
[403063302,1769116242220,-168.0,0.00036095,2]
[403063303,1769116242229,-1000.0,0.00036315,2]
[403063304,1769116242239,-151.0,0.00036315,31]
[403063305,1769116242248,-151.0,0.00036315,31]
[403063306,1769116242258,-151.0,0.00036315,31]
[403063307,1769116242267,-168.0,0.00036342,2]
[403063308,1769116242276,-168.0,0.00036357,2]
[403063309,1769116242285,-4557.7,0.00036888,2]
[403063310,1769116242295,-151.0,0.00036956,7]
[403063311,1769116242304,-151.0,0.00036956,7]
[403063312,1769116242314,-151.0,0.00036956,7]
[403063313,1769116242324,-151.0,0.00036956,7]
[403063314,1769116242334,-151.0,0.00036956,7]
[403063315,1769116242343,-151.0,0.00036956,7]
[403063316,1769116242352,-151.0,0.00036956,7]
[403063317,1769116242362,-151.0,0.00036956,7]
[403063318,1769116242371,-151.0,0.00036956,7]
[403063319,1769116242380,-151.0,0.00036956,7]
[403063320,1769116242389,-151.0,0.00036986,10]
[403063321,1769116242398,-183.616526,0.00036986,31]
[403063322,1769116242407,-183.616526,0.00036986,31]
[403063323,1769116242416,-183.616526,0.00036986,31]
[403063324,1769116242425,-183.616526,0.00036986,31]
[403063325,1769116242434,-151.0,0.00036986,31]
[403063326,1769116242443,-151.0,0.00036986,31]
[403063327,1769116242452,-151.0,0.00036986,31]
[403063328,1769116242462,-151.0,0.00036986,31]
[403063329,1769116242471,-354.940012,0.00036986,31]
[403063330,1769116242480,-354.940012,0.00036986,31]
[403063331,1769116242489,-354.940012,0.00036986,31]
[403063332,1769116242498,-354.940012,0.00036986,31]
[403063333,1769116242507,-5657.90724908,0.00037456,2]
[403063334,1769116242516,-1317.79840837,0.00037592,4]
[403063335,1769116242525,-3396.80742108,0.000381,33]
[403063336,1769116242535,-19373.89,0.000381,2]
[403063337,1769116242543,-173.870812,0.000381,31]
[403063338,1769116242553,-151.0,0.000381,31]
[403063341,1769116242767,-151.0,0.000381,31]
[403063342,1769116242779,-151.0,0.000381,31]
[403063343,1769116242789,-151.0,0.000381,31]
[403063344,1769116242799,-151.0,0.000381,31]
[403063345,1769116242808,-151.0,0.000381,31]
[403063346,1769116242818,-151.0,0.000381,31]
[403063347,1769116242829,-151.0,0.000381,31]
[403063348,1769116242839,-151.0,0.000381,31]
[403063349,1769116242848,-151.0,0.000381,31]
[403063350,1769116242858,-151.0,0.000381,31]
[403063352,1769116242867,-203.4,0.00038201,30]
[403063353,1769116242877,-3474.0,0.00038275,2]
[403063354,1769116242886,-915.0,0.00038275,2]
[403063355,1769116242896,-8912.97263101,0.00038278,5]
[403063356,1769116242905,-612.32,0.00038575,2]
[403063357,1769116242915,-612.32,0.00038575,2]
[403063358,1769116242924,-612.32,0.00038575,2]
[403063360,1769116242934,-612.32,0.00038575,2]
[403063361,1769116242943,-150.0,0.00038712,7]
[403063362,1769116242952,-150.0,0.00038712,7]
[403063363,1769116242963,-150.0,0.00038712,7]
[403063364,1769116242972,-150.0,0.00038712,7]
[403063365,1769116242982,-150.0,0.00038712,7]
[403063366,1769116242991,-174.62636735,0.00038712,7]
[403063367,1769116243001,-152.23105344,0.00038712,7]
[403063368,1769116243010,-150.0,0.00038712,7]
[403063369,1769116243020,-150.85901297,0.00038712,7]
[403063370,1769116243030,-150.0,0.00038712,7]
[403063371,1769116243040,-150.0,0.00038712,7]
[403063372,1769116243049,-150.0,0.00038712,7]
[403063374,1769116243059,-150.0,0.00038712,7]
[403063375,1769116243069,-150.0,0.00038828,7]
[403063376,1769116243078,-150.0,0.00038877,7]
[403063377,1769116243088,-150.0,0.00038944,7]
[403063378,1769116243098,-150.0,0.00038981,7]
[403063379,1769116243107,-150.0,0.00039019,7]
[403063380,1769116243117,-150.0,0.00039043,7]
[403063381,1769116243127,-150.0,0.0003906,7]
[403063382,1769116243136,-150.0,0.00039103,7]
[403063383,1769116243146,-150.0,0.00039142,7]
[403063384,1769116243156,-150.0,0.00039177,7]
[403063385,1769116243166,-150.0,0.0003919,7]
[403063386,1769116243175,-150.0,0.00039208,7]
[403063387,1769116243184,-150.0,0.00039249,7]
[403063388,1769116243194,-150.0,0.00039249,7]
[403063389,1769116243203,-179.67,0.0003926,2]
[403063390,1769116243213,-150.0,0.00039293,7]
[403063391,1769116243223,-150.0,0.00039326,7]
[403063392,1769116243232,-150.0,0.00039373,7]
[403063393,1769116243242,-150.0,0.00039409,7]
[403063394,1769116243252,-150.0,0.00039494,7]
[403063395,1769116243262,-150.0,0.00039518,7]
[403063396,1769116243271,-150.0,0.00039525,7]
[403063397,1769116243283,-610.77,0.00039534,2]
[403063398,1769116243293,-150.0,0.00039539,7]
[403063399,1769116243302,-150.0,0.00039572,7]
[403063400,1769116243312,-150.0,0.00039633,7]
[403063401,1769116243323,-150.0,0.00039642,7]
[403063402,1769116243333,-150.0,0.00039668,7]
[403063403,1769116243343,-2338.44,0.00039701,55]
[403063404,1769116243352,-150.0,0.00039704,7]
[403063405,1769116243362,-150.0,0.00039758,7]
[403063406,1769116243372,-836.0,0.00039769,11]
[403063407,1769116243381,-150.0,0.00039787,7]
[403063408,1769116243391,-150.0,0.00039787,7]
[403063409,1769116243401,-150.0,0.0003987,7]
[403063410,1769116243411,-150.0,0.00039874,7]
[403063411,1769116243421,-6999.999999,0.00039876,5]
[403063412,1769116243431,-150.0,0.00039885,7]
[403063413,1769116243440,-40447.45651816,0.000399,120]
[403063414,1769116243450,-19373.89,0.000399,30]
[403063415,1769116243460,-5657.90724908,0.000399,15]
[403063416,1769116243469,-150.0,0.00039941,7]
[403063417,1769116243479,-1000.0,0.00039946,2]
[403063418,1769116243489,-400.0,0.0003997,2]
[403063419,1769116243498,-150.0,0.0003999,7]
[403063420,1769116243508,-300.0,0.00039999,10]
[403063421,1769116243517,-300.0,0.00039999,10]
[403063422,1769116243527,-300.0,0.00039999,10]
[403063423,1769116243537,-152.0,0.0004,120]
[403063424,1769116243546,-152.0,0.0004,120]
[403063425,1769116243556,-31098.89009453,0.0004,28]
[403063426,1769116243565,-743.06224106,0.0004,30]
[403063427,1769116243575,-300490.97619711,0.0004,15]
[403063428,1769116243584,-5174.0,0.0004,120]
[403063429,1769116243593,-336.33,0.0004,120]
[403063430,1769116243602,-214.58,0.0004,120]
[403063431,1769116243612,-267.93,0.0004,120]
[403063432,1769116243622,-649.48,0.0004,120]
[403063433,1769116243631,-150.0,0.00040002,7]
[403063434,1769116243641,-150.0,0.00040035,7]
[403063435,1769116243651,-150.0,0.00040056,7]
[403063436,1769116243660,-500.0,0.00040086,30]
[403063437,1769116243669,-150.0,0.00040107,7]
[403063438,1769116243679,-1857.57020595,0.00040128,7]